bitfinex/quotes_SOLUSD_20240712
["timestamp","ask_amount","ask_price","bid_price","bid_amount"]
[1720810643353,13.7896,140.36,140.25,7.38842675]
[1720810643577,15.7574,140.35,140.25,38.03842675]
[1720810644277,6.6648,140.34,140.25,38.03842675]
[1720810644578,6.6648,140.34,140.22,30.65]
[1720810645788,13.7903,140.34,140.23,45.0]
[1720810645961,13.7903,140.34,140.24,20.0]
[1720810647378,13.7903,140.34,140.23,45.0]
[1720810647580,13.7903,140.34,140.24,20.0]
[1720810648988,45.0,140.33,140.24,20.0]
[1720810649655,13.7903,140.34,140.24,20.0]
[1720810650080,6.6648,140.34,140.24,20.0]
[1720810652061,13.7906,140.34,140.24,20.0]
[1720810653585,13.7906,140.34,140.23,45.0]
[1720810653780,45.0,140.33,140.22,30.65]
[1720810653967,52.1262,140.33,140.23,20.0]
[1720810655583,45.0,140.33,140.23,20.0]
[1720810655881,52.126,140.33,140.23,20.0]
[1720810657478,7.1265,140.32,140.23,20.0]
[1720810657687,52.1262,140.33,140.23,20.0]
[1720810658278,13.6104,140.32,140.23,20.0]
[1720810658671,6.4839,140.32,140.23,20.0]
[1720810659491,16.6134,140.31,140.21,7.3899759]
[1720810659966,16.6134,140.31,140.22,65.0]
[1720810660168,6.1831,140.3,140.21,7.3899759]
[1720810660575,13.3111,140.3,140.21,7.3899759]
[1720810660776,45.0,140.29,140.21,7.3899759]
[1720810661288,6.1831,140.3,140.21,7.3899759]
[1720810661796,13.3108,140.3,140.21,7.3899759]
[1720810662672,52.1282,140.29,140.21,7.3899759]
[1720810664587,45.0,140.29,140.21,7.3899759]
[1720810666281,6.1831,140.3,140.21,7.3899759]
[1720810669683,13.3111,140.3,140.21,7.3899759]
[1720810670175,7.1281,140.29,140.21,7.3899759]
[1720810670690,13.3108,140.3,140.21,7.3899759]
[1720810670994,45.0,140.29,140.21,7.3899759]
[1720810671378,6.1831,140.3,140.21,7.3899759]
[1720810672891,6.1831,140.3,140.26,15.3]
[1720810673492,6.1831,140.3,140.23,15.1323]
[1720810673687,6.1831,140.3,140.28,15.3]
[1720810674609,6.1831,140.3,140.24,45.0]
[1720810680299,15.2282,140.29,140.21,7.3899759]
[1720810680792,7.1295,140.27,140.21,7.3899759]
[1720810681578,7.1297,140.26,140.21,7.3899759]
[1720810681781,33.0491,140.29,140.21,7.3899759]
[1720810681984,7.13,140.26,140.21,7.3899759]
[1720810682608,7.1292,140.27,140.21,7.3899759]
[1720810683679,6.6063,140.26,140.21,7.3899759]
[1720810683904,13.7359,140.26,140.21,7.3899759]
[1720810684609,6.6063,140.26,140.21,7.3899759]
[1720810686592,15.2282,140.29,140.22,1.22677679]
[1720810686806,15.2282,140.29,140.19,27.37579202]
[1720810687105,15.2282,140.29,140.2,45.0]
[1720810687409,22.3563,140.29,140.2,45.0]
[1720810688408,6.6564,140.3,140.2,45.0]
[1720810688587,7.1282,140.29,140.2,45.0]
[1720810688792,6.6564,140.3,140.19,27.37579202]
[1720810688995,7.1286,140.28,140.2,45.0]
[1720810689308,7.1281,140.29,140.19,27.37579202]
[1720810690411,13.7841,140.3,140.19,27.37579202]
[1720810691104,6.6564,140.3,140.2,45.0]
[1720810691499,6.6564,140.3,140.21,50.6]
[1720810691713,7.1281,140.29,140.21,20.0]
[1720810692513,13.7841,140.3,140.21,20.0]
[1720810695105,6.6564,140.3,140.21,20.0]
[1720810695410,6.6564,140.3,140.22,45.0]
[1720810695998,13.7841,140.3,140.21,20.0]
[1720810696199,13.7841,140.3,140.2,20.0]
[1720810696717,15.31,140.29,140.24,15.31]
[1720810697106,29.0941,140.3,140.24,15.31]
[1720810697914,15.31,140.29,140.24,15.31]
[1720810699016,6.6564,140.3,140.23,15.8231]
[1720810699322,6.6564,140.3,140.27,15.31]
[1720810704027,6.6564,140.3,140.26,15.31]
[1720810705306,6.6564,140.3,140.23,15.8231]
[1720810705522,6.6564,140.3,140.26,15.31]
[1720810708102,13.784,140.3,140.23,15.8231]
[1720810708316,29.094,140.3,140.25,15.31]
[1720810708525,29.094,140.3,140.2,35.4931]
[1720810708732,15.31,140.29,140.24,15.31]
[1720810709222,21.9664,140.3,140.24,15.31]
[1720810709426,21.9664,140.3,140.25,15.31]
[1720810712328,6.6564,140.3,140.25,15.31]
[1720810712838,6.6564,140.3,140.26,15.31]
[1720810713846,21.9664,140.3,140.24,15.31]
[1720810714136,15.31,140.29,140.24,15.31]
[1720810714747,21.9664,140.3,140.24,15.31]
[1720810714948,6.6564,140.3,140.25,15.31]
[1720810716636,21.9664,140.3,140.25,15.31]
[1720810717817,6.6564,140.3,140.25,15.31]
[1720810719441,6.6564,140.3,140.26,15.31]
[1720810719639,21.9664,140.3,140.2,35.4931]
[1720810719850,21.9664,140.3,140.25,15.31]
[1720810722638,6.6564,140.3,140.25,15.31]
[1720810728635,21.9664,140.3,140.25,15.31]
[1720810730224,6.6564,140.3,140.25,15.31]
[1720810732635,15.31,140.28,140.19,7.37579202]
[1720810732839,15.31,140.27,140.19,7.37579202]
[1720810733147,15.31,140.27,140.22,15.31]
[1720810733526,31.1622,140.27,140.22,15.31]
[1720810733729,15.8522,140.27,140.19,7.37579202]
[1720810733933,21.8686,140.25,140.19,7.37579202]
[1720810734243,21.8686,140.25,140.2,15.31]
[1720810734442,6.5586,140.25,140.21,15.31]
[1720810735642,6.5586,140.25,140.22,15.31]
[1720810737546,6.5586,140.25,140.23,15.31]
[1720810739152,6.5586,140.25,140.22,15.31]
[1720810742252,16.4991,140.23,140.19,7.37579202]
[1720810742558,15.31,140.2,140.1,3.68158028]
[1720810742861,98.833,140.22,140.13,15.31]
[1720810743032,15.31,140.19,140.13,15.31]
[1720810743235,60.31,140.18,140.13,15.31]
[1720810743565,15.31,140.19,140.14,15.31]
[1720810743853,51.003,140.22,140.16,15.31]
[1720810744037,35.31,140.21,140.16,15.31]
[1720810744230,20.0,140.21,140.17,15.31]
[1720810744634,20.0,140.21,140.18,15.31]
[1720810745657,20.0,140.21,140.09,15.3535]
[1720810745955,20.0,140.21,140.18,15.31]
[1720810746661,15.31,140.19,140.1,7.50024211]
[1720810746868,15.31,140.19,140.08,7.38027194]
[1720810746869,15.31,140.19,140.13,15.31]
[1720810747177,60.31,140.2,140.14,15.31]
[1720810747351,15.31,140.19,140.14,15.31]
[1720810747548,52.1327,140.2,140.14,15.31]
[1720810747882,45.0,140.2,140.16,15.31]
[1720810748064,60.31,140.21,140.16,15.31]
[1720810748563,6.003,140.22,140.09,15.811]
[1720810748819,6.2771,140.27,140.16,15.8963]
[1720810749063,6.2771,140.27,140.17,20.0]
[1720810749247,6.2771,140.27,140.25,15.31]
[1720810749443,6.2771,140.27,140.26,15.31]
[1720810749862,6.2771,140.31,140.26,15.31]
[1720810750047,6.2771,140.31,140.29,15.31]
[1720810750457,6.2771,140.31,140.3,15.31]
[1720810750672,6.2771,140.35,140.26,30.59]
[1720810751579,7.37553405,140.36,140.29,30.59]
[1720810752448,6.3661,140.39,140.29,30.59]
[1720810753563,45.0,140.38,140.29,30.59]
[1720810756797,45.0,140.38,140.26,30.59]
[1720810756959,7.125,140.35,140.26,30.59]
[1720810757160,7.1248,140.36,140.26,30.59]
[1720810757365,45.0,140.35,140.26,30.59]
[1720810757661,22.8217,140.37,140.26,30.59]
[1720810757864,45.0,140.36,140.26,30.59]
[1720810758584,52.1246,140.36,140.26,30.59]
[1720810759476,7.1251,140.35,140.26,30.59]
[1720810759671,6.5192,140.33,140.26,30.59]
[1720810762369,6.5192,140.33,140.25,30.59]
[1720810762569,45.0,140.32,140.25,30.59]
[1720810762980,6.5192,140.33,140.25,30.59]
[1720810765287,45.0,140.32,140.25,30.59]
[1720810769466,45.0,140.32,140.19,18.46123174]
[1720810769467,6.3345,140.3,140.19,10.96098963]
[1720810769686,7.1299,140.26,140.15,46.9905]
[1720810769975,7.1292,140.27,140.15,46.9905]
[1720810770177,45.0,140.25,140.15,46.9905]
[1720810770581,16.3345,140.3,140.15,46.9905]
[1720810770582,45.0,140.26,140.15,46.9905]
[1720810770791,7.1282,140.29,140.18,30.59]
[1720810771002,45.0,140.28,140.18,30.59]
[1720810771174,45.0,140.29,140.18,30.59]
[1720810771875,45.0,140.29,140.19,45.0]
[1720810774570,13.462,140.3,140.19,45.0]
[1720810774571,6.3345,140.3,140.19,45.0]
[1720810774985,6.3345,140.3,140.21,30.59]
[1720810777465,13.462,140.3,140.21,30.59]
[1720810778393,13.462,140.3,140.2,52.514]
[1720810778589,7.1288,140.28,140.2,46.273]
[1720810778890,45.0,140.27,140.2,15.683]
[1720810779077,6.3345,140.3,140.2,15.683]
[1720810779278,52.128,140.29,140.2,15.683]
[1720810781491,45.0,140.29,140.2,15.683]
[1720810781796,52.1281,140.29,140.2,15.683]
[1720810782395,7.1287,140.28,140.2,15.683]
[1720810782598,45.0,140.27,140.2,15.683]
[1720810784076,45.0,140.28,140.2,15.683]
[1720810785073,52.1287,140.28,140.2,15.683]
[1720810787290,45.0,140.28,140.2,15.683]
[1720810787492,7.1294,140.27,140.17,54.08237662]
[1720810787695,45.0,140.26,140.17,54.08237662]
[1720810788793,52.1296,140.26,140.17,23.49237662]
[1720810789284,45.0,140.26,140.17,23.49237662]
[1720810790096,45.0,140.27,140.17,23.49237662]
[1720810791102,52.1291,140.27,140.17,23.49237662]
[1720810791484,45.0,140.27,140.17,23.49237662]
[1720810792204,52.1294,140.27,140.17,23.49237662]
[1720810792396,45.0,140.27,140.17,23.49237662]
[1720810792596,45.0,140.27,140.18,30.59]
[1720810792797,45.0,140.28,140.18,30.59]
[1720810792998,45.0,140.29,140.18,30.59]
[1720810793504,45.0,140.29,140.19,45.0]
[1720810794003,52.1281,140.29,140.19,45.0]
[1720810796506,52.1281,140.29,140.18,30.59]
[1720810797319,45.0,140.29,140.17,26.31403407]
[1720810797504,7.1298,140.26,140.17,26.31403407]
[1720810797805,45.0,140.25,140.17,26.31403407]
[1720810800985,45.0,140.26,140.17,26.31403407]
[1720810802089,52.1297,140.26,140.17,26.31403407]
[1720810802411,45.0,140.26,140.17,26.31403407]
[1720810802913,52.1291,140.27,140.17,26.31403407]
[1720810803300,7.1302,140.25,140.17,26.31403407]
[1720810803503,45.0,140.24,140.17,26.31403407]
[1720810804110,7.1321,140.22,140.17,10.19903407]
[1720810804296,45.0,140.21,140.17,7.37737662]
[1720810804699,60.33,140.21,140.17,7.37737662]
[1720810804896,60.33,140.21,140.18,15.33]
[1720810804897,45.0,140.21,140.18,15.33]
[1720810805091,6.504,140.24,140.2,15.33]
[1720810805307,45.0,140.23,140.2,15.33]
[1720810805487,6.504,140.24,140.2,15.33]
[1720810805892,13.6382,140.28,140.17,7.37737662]
[1720810806188,6.5095,140.32,140.25,15.33]
[1720810806499,7.1279,140.3,140.18,21.4096]
[1720810806703,7.1279,140.3,140.21,30.61]
[1720810807414,6.5095,140.32,140.21,30.61]
[1720810807415,7.1281,140.29,140.21,30.61]
[1720810807590,45.0,140.28,140.21,30.61]
[1720810807792,52.1281,140.29,140.21,30.61]
[1720810808608,45.0,140.29,140.21,30.61]
[1720810809914,52.1281,140.29,140.21,30.61]
[1720810811295,45.0,140.29,140.21,30.61]
[1720810812020,52.1281,140.29,140.21,30.61]
[1720810812818,45.0,140.29,140.21,30.61]
[1720810813215,7.1286,140.28,140.21,30.61]
[1720810813416,45.0,140.27,140.21,30.61]
[1720810814306,45.0,140.28,140.21,30.61]
[1720810818405,7.1272,140.31,140.22,15.0595]
[1720810818619,13.6361,140.32,140.22,15.0595]
[1720810818825,13.6361,140.32,140.24,30.61]
[1720810819211,7.1271,140.31,140.24,30.61]
[1720810820033,18.95233995,140.33,140.24,30.61]
[1720810820230,45.0,140.32,140.24,37.1985]
[1720810820635,7.1263,140.33,140.24,37.1985]
[1720810821512,7.1266,140.32,140.24,37.1985]
[1720810823009,7.1262,140.33,140.24,37.1985]
[1720810823210,7.1262,140.33,140.25,15.893]
[1720810823410,16.70534255,140.35,140.25,15.893]
[1720810823606,10.0,140.33,140.25,15.893]
[1720810823855,7.1294,140.27,140.25,15.893]
[1720810824026,17.8164,140.32,140.21,15.893]
[1720810824027,7.1287,140.28,140.21,15.893]
[1720810824929,34.0634,140.32,140.21,15.893]
[1720810824930,45.0,140.27,140.21,15.893]
[1720810825437,7.1296,140.26,140.21,15.893]
[1720810825614,7.1304,140.25,140.21,15.893]
[1720810825814,7.1299,140.26,140.21,15.893]
[1720810826029,45.0,140.25,140.21,15.893]
[1720810826628,45.0,140.26,140.21,15.893]
[1720810827337,7.1287,140.28,140.21,15.893]
[1720810827541,6.1918,140.29,140.21,15.893]
[1720810828815,45.0,140.28,140.21,15.893]
[1720810829015,7.1292,140.27,140.21,15.893]
[1720810829319,52.1287,140.28,140.21,15.893]
[1720810829632,45.0,140.28,140.21,15.893]
[1720810830028,7.1276,140.3,140.21,15.893]
[1720810830233,7.1272,140.31,140.23,30.61]
[1720810830533,7.1269,140.32,140.23,30.61]
[1720810830738,20.23166364,140.35,140.23,30.61]
[1720810831036,14.34389097,140.34,140.27,15.602]
[1720810831228,7.21829097,140.33,140.27,15.602]
[1720810831639,7.21829097,140.34,140.27,15.602]
[1720810831824,7.21829097,140.35,140.27,15.602]
[1720810832026,7.1246,140.36,140.27,15.602]
[1720810832226,7.22123791,140.34,140.27,15.602]
[1720810832424,7.22123791,140.35,140.28,6.5935]
[1720810832638,7.1246,140.36,140.29,30.61]
[1720810832835,7.22136184,140.35,140.29,30.61]
[1720810833033,7.1251,140.35,140.29,30.61]
[1720810833224,52.1255,140.34,140.29,30.61]
[1720810834425,7.1261,140.33,140.27,15.602]
[1720810834636,52.1266,140.32,140.27,15.602]
[1720810834843,7.128,140.29,140.23,15.602]
[1720810835052,7.1276,140.3,140.23,15.602]
[1720810835222,45.0,140.29,140.23,15.602]
[1720810835736,45.0,140.3,140.23,15.602]
[1720810835936,52.1276,140.3,140.23,15.602]
[1720810836129,45.0,140.3,140.23,15.602]
[1720810836335,45.0,140.31,140.23,15.602]
[1720810837243,7.1276,140.3,140.23,15.602]
[1720810837422,45.0,140.29,140.23,15.602]
[1720810839930,45.0,140.29,140.2,6.5935]
[1720810840133,7.1295,140.27,140.19,54.05032838]
[1720810840339,45.0,140.26,140.19,54.05032838]
[1720810843430,7.1301,140.25,140.19,54.05032838]
[1720810843633,52.1297,140.26,140.19,23.44032838]
[1720810844132,45.0,140.26,140.19,23.44032838]
[1720810844331,7.1311,140.23,140.19,7.44762838]
[1720810844558,45.0,140.22,140.19,7.44762838]
[1720810846537,6.1755,140.26,140.19,7.44762838]
[1720810846538,45.0,140.23,140.19,7.44762838]
[1720810846730,45.0,140.24,140.19,7.44762838]
[1720810847353,52.1308,140.24,140.19,7.44762838]
[1720810847562,7.1311,140.23,140.19,7.44762838]
[1720810847846,45.0,140.22,140.19,7.44762838]
[1720810848069,52.1306,140.24,140.19,7.44762838]
[1720810848369,7.1311,140.23,140.19,7.44762838]
[1720810848572,45.0,140.22,140.19,7.44762838]
[1720810848940,45.0,140.23,140.19,7.44762838]
[1720810850068,52.1312,140.23,140.19,7.44762838]
[1720810851750,45.0,140.23,140.19,7.44762838]
[1720810852752,7.1308,140.24,140.19,7.44762838]
[1720810852953,15.487,140.29,140.2,15.4388]
[1720810853922,28.37267246,140.29,140.2,15.4388]
[1720810854055,7.1312,140.23,140.2,15.4388]
[1720810854250,45.0,140.22,140.2,15.4388]
[1720810854470,45.0,140.22,140.19,7.44762838]
[1720810854661,52.1318,140.22,140.19,7.44762838]
[1720810855674,45.0,140.22,140.19,7.44762838]
[1720810857258,7.1321,140.21,140.19,7.44762838]
[1720810858687,7.1326,140.2,140.19,7.44762838]
[1720810858861,52.1326,140.2,140.19,7.44762838]
[1720810859063,45.0,140.2,140.19,7.44762838]
[1720810859866,7.1318,140.22,140.19,7.44762838]
[1720810860171,7.1313,140.23,140.19,7.44762838]
[1720810860378,7.1309,140.24,140.19,7.44762838]
[1720810860571,7.1303,140.25,140.19,7.44762838]
[1720810861990,7.1274,140.31,140.21,30.61]
[1720810862169,7.1276,140.3,140.21,30.61]
[1720810862367,12.67519803,140.31,140.21,30.61]
[1720810862585,7.1282,140.29,140.21,30.61]
[1720810862786,7.1281,140.29,140.21,30.61]
[1720810862968,6.6406,140.32,140.21,30.61]
[1720810863163,7.1279,140.3,140.21,30.61]
[1720810863369,7.1271,140.31,140.24,30.61]
[1720810863572,7.1271,140.31,140.25,6.0745]
[1720810863991,7.1276,140.3,140.25,6.0745]
[1720810864588,7.1281,140.29,140.25,6.0745]
[1720810865003,7.1277,140.3,140.25,6.0745]
[1720810865492,17.8149,140.34,140.25,6.0745]
[1720810865698,17.8166,140.32,140.23,30.61]
[1720810865878,7.1286,140.28,140.23,30.61]
[1720810866279,7.1282,140.29,140.23,30.61]
[1720810866474,7.1277,140.3,140.23,30.61]
[1720810866675,45.0,140.29,140.23,30.61]
[1720810866898,45.0,140.29,140.22,21.3864]
[1720810867201,7.1286,140.28,140.22,21.3864]
[1720810867394,52.1282,140.29,140.22,21.3864]
[1720810868297,7.1287,140.28,140.22,21.3864]
[1720810868490,45.0,140.27,140.22,15.3119]
[1720810869077,7.1302,140.25,140.22,15.3119]
[1720810869395,45.0,140.27,140.22,15.3119]
[1720810870105,7.13,140.26,140.22,15.3119]
[1720810870276,45.0,140.25,140.22,15.3119]
[1720810870596,7.1296,140.26,140.22,15.3119]
[1720810870789,45.0,140.25,140.22,15.3119]
[1720810873676,7.1293,140.27,140.22,15.3119]
[1720810874080,7.1287,140.28,140.22,15.3119]
[1720810874279,7.1282,140.29,140.22,15.3119]
[1720810875085,45.0,140.28,140.22,15.3119]
[1720810875597,7.1291,140.27,140.22,15.3119]
[1720810876303,52.1287,140.28,140.22,15.3119]
[1720810877498,7.1291,140.27,140.22,15.3119]
[1720810877904,7.1296,140.26,140.22,15.3119]
[1720810878280,7.1292,140.27,140.22,15.3119]
[1720810878478,52.1287,140.28,140.22,15.3119]
[1720810878685,45.0,140.28,140.22,15.3119]
[1720810878907,45.0,140.29,140.22,15.3119]
[1720810879688,52.1281,140.29,140.22,15.3119]
[1720810880001,7.1286,140.28,140.22,15.3119]
[1720810880182,45.0,140.29,140.22,15.3119]
[1720810880700,7.1292,140.27,140.22,15.3119]
[1720810881408,7.1297,140.26,140.22,15.3119]
[1720810883692,7.1301,140.25,140.22,15.3119]
[1720810884492,7.1297,140.26,140.22,15.3119]
[1720810884694,45.0,140.25,140.22,15.3119]
[1720810886312,52.1303,140.25,140.22,15.3119]
[1720810886611,45.0,140.25,140.22,15.3119]
[1720810887498,45.0,140.26,140.22,15.3119]
[1720810889594,52.1292,140.27,140.22,15.3119]
[1720810891886,45.0,140.27,140.22,15.3119]
[1720810893511,52.1293,140.27,140.22,15.3119]
[1720810894009,7.1296,140.26,140.22,15.3119]
[1720810895196,45.0,140.27,140.22,15.3119]
[1720810895401,52.1293,140.27,140.22,15.3119]
[1720810896122,7.1296,140.26,140.22,15.3119]
[1720810896413,7.1301,140.25,140.22,15.3119]
[1720810896613,7.1307,140.24,140.22,15.3119]
[1720810897195,7.1311,140.23,140.2,7.45078903]
[1720810897613,7.1308,140.24,140.2,7.45078903]
[1720810897806,45.0,140.23,140.2,7.45078903]
[1720810899005,45.0,140.24,140.2,7.45078903]
[1720810899205,6.5366,140.29,140.2,7.45078903]
[1720810899406,7.1291,140.27,140.2,7.45078903]
[1720810899611,35.26777269,140.31,140.2,7.45078903]
[1720810899811,38.04596086,140.31,140.2,7.45078903]
[1720810900204,7.1296,140.26,140.2,7.45078903]
[1720810900405,7.1293,140.27,140.2,7.45078903]
[1720810900718,45.0,140.26,140.2,7.45078903]
[1720810900905,45.0,140.27,140.2,7.45078903]
[1720810901919,52.1291,140.27,140.2,7.45078903]
[1720810902108,45.0,140.27,140.2,7.45078903]
[1720810902309,7.13,140.26,140.2,7.45078903]
[1720810905520,45.0,140.27,140.2,7.45078903]
[1720810905521,52.1305,140.25,140.2,7.45078903]
[1720810905726,7.1305,140.25,140.2,7.45078903]
[1720810905926,45.0,140.24,140.2,7.45078903]
[1720810906323,45.0,140.25,140.2,7.45078903]
[1720810906534,7.1297,140.26,140.2,7.45078903]
[1720810907126,7.1293,140.27,140.2,13.98018903]
[1720810907426,45.0,140.26,140.2,13.98018903]
[1720810907620,52.1297,140.26,140.2,13.98018903]
[1720810907928,7.1286,140.28,140.21,16.0813]
[1720810908131,45.0,140.27,140.21,16.0813]
[1720810910211,52.1292,140.27,140.21,16.0813]
[1720810911732,7.1296,140.26,140.21,16.0813]
[1720810912731,7.1302,140.25,140.21,16.0813]
[1720810913727,7.1296,140.26,140.21,16.0813]
[1720810914114,52.1293,140.27,140.21,16.0813]
[1720810914921,45.0,140.27,140.21,16.0813]
[1720810915240,7.1287,140.28,140.21,16.0813]
[1720810915607,7.1281,140.29,140.21,16.0813]
[1720810916014,7.1281,140.29,140.22,1.42602846]
[1720810916230,7.1287,140.28,140.21,16.0813]
[1720810916534,7.1283,140.29,140.21,16.0813]
[1720810917517,7.1283,140.29,140.22,30.61]
[1720810920850,7.1283,140.29,140.26,15.3]
[1720810921827,7.1283,140.29,140.27,15.3]
[1720810922039,7.1283,140.29,140.26,15.3]
[1720810922237,7.1283,140.29,140.27,15.3]
[1720810923646,7.1277,140.3,140.27,15.3]
[1720810924356,7.1281,140.29,140.27,15.3]
[1720810924645,7.1285,140.28,140.26,15.3]
[1720810925039,7.1283,140.29,140.26,15.3]
[1720810925640,7.1293,140.27,140.21,16.0813]
[1720810925854,45.0,140.26,140.22,15.3]
[1720810928146,24.1672,140.32,140.24,15.3]
[1720810928331,7.1279,140.3,140.25,15.3]
[1720810928531,45.0,140.29,140.25,15.3]
[1720810928737,45.0,140.29,140.27,15.3]
[1720810929137,52.1282,140.29,140.26,15.3]
[1720810929446,52.1282,140.29,140.25,15.3]
[1720810930123,45.0,140.29,140.26,15.3]
[1720810930327,45.0,140.3,140.28,15.3]
[1720810930545,13.4763,140.32,140.28,15.3]
[1720810931127,27.8123,140.36,140.29,15.3]
[1720810931128,40.6289,140.36,140.29,15.3]
[1720810931324,7.1259,140.34,140.27,16.0931]
[1720810931532,7.1259,140.34,140.31,15.3]
[1720810932047,22.8166,140.36,140.27,16.0931]
[1720810932245,15.3,140.32,140.25,15.3]
[1720810932545,15.3,140.32,140.2,7.44267777]
[1720810932546,7.1238,140.38,140.29,15.6063]
[1720810933740,29.74008861,140.39,140.29,15.6063]
[1720810933961,32.56558897,140.39,140.29,15.6063]
[1720810934248,45.0,140.38,140.29,15.6063]
[1720810936236,32.56558897,140.39,140.29,15.6063]
[1720810937545,45.0,140.38,140.29,15.6063]
[1720810938970,45.0,140.38,140.25,16.4469]
[1720810944348,7.44141929,140.37,140.25,16.4469]
[1720810944531,45.0,140.36,140.25,16.4469]
[1720810945049,45.0,140.36,140.24,30.58]
[1720810945050,22.298,140.39,140.28,16.0893]
[1720810945252,22.298,140.39,140.3,30.58]
[1720810946851,21.6006,140.43,140.3,30.58]
[1720810947038,21.6006,140.43,140.31,1.06940276]
[1720810947931,29.04362932,140.43,140.3,30.58]
[1720810949250,45.0,140.42,140.3,30.58]
[1720810952659,45.0,140.42,140.31,15.0264]
[1720810952855,45.0,140.42,140.32,6.2013]
[1720810953060,7.44198443,140.46,140.34,15.5679]
[1720810953247,7.44198443,140.46,140.35,1.42396818]
[1720810953448,7.44198443,140.46,140.36,1.42386693]
[1720810953961,22.2628,140.47,140.36,1.42386693]
[1720810954551,22.2628,140.47,140.34,15.5679]
[1720810954754,22.2628,140.47,140.36,30.58]
[1720810956237,22.2628,140.47,140.37,21.7216]
[1720810956465,6.4063,140.52,140.4,15.177]
[1720810956653,6.4063,140.52,140.42,30.58]
[1720810958143,16.4063,140.52,140.4,15.177]
[1720810958465,6.4063,140.52,140.4,15.177]
[1720810959160,45.0,140.51,140.4,15.177]
[1720810960968,7.44491439,140.5,140.4,15.177]
[1720810961149,45.0,140.49,140.4,15.177]
[1720810966062,7.44491439,140.5,140.4,15.177]
[1720810967074,45.0,140.49,140.4,15.177]
[1720810968649,15.2759,140.48,140.4,15.177]
[1720810968866,15.2759,140.48,140.36,16.4442]
[1720810968867,6.6042,140.46,140.36,16.4442]
[1720810969064,55.0,140.45,140.36,16.4442]
[1720810969271,55.0,140.45,140.33,22.6957]
[1720810970379,45.0,140.45,140.33,22.6957]
[1720810970670,55.0,140.45,140.33,22.6957]
[1720810971358,7.44067962,140.44,140.33,22.6957]
[1720810971557,45.0,140.43,140.33,22.6957]
[1720810973452,44.5,140.43,140.33,22.6957]
[1720810976462,6.6042,140.46,140.33,22.6957]
[1720810976777,14.04483421,140.46,140.33,53.2757]
[1720810976958,10.0,140.45,140.33,53.2757]
[1720810977159,14.04483421,140.46,140.33,53.2757]
[1720810977359,14.04483421,140.46,140.33,22.6957]
[1720810978673,10.0,140.45,140.33,22.6957]
[1720810979067,45.0,140.44,140.33,22.6957]
[1720810979269,45.0,140.45,140.33,22.6957]
[1720810979672,45.0,140.45,140.33,53.2757]
[1720810980062,55.0,140.45,140.33,53.2757]
[1720810980459,45.0,140.45,140.33,53.2757]
[1720810980669,55.0,140.45,140.33,53.2757]
[1720810981686,45.0,140.45,140.33,53.2757]
[1720810981863,55.0,140.45,140.33,53.2757]
[1720810982856,15.1716,140.44,140.33,16.4442]